bitfinex/quotes_ETHUSD_20240730
["timestamp","ask_amount","ask_price","bid_price","bid_amount"]
[1722369013279,6.59915,3279.6,3278.8,2.73]
[1722369013280,3.0,3279.6,3279.4,3.04933]
[1722369013490,6.04895,3279.9,3279.3,3.04941]
[1722369013810,2.4855,3280.1,3279.3,0.304941]
[1722369014012,2.4855,3280.6,3279.4,0.06098751]
[1722369014173,3.04838,3280.5,3279.8,3.04891]
[1722369014373,3.04837,3280.5,3279.7,3.04905]
[1722369014613,3.04855,3280.3,3279.7,3.04905]
[1722369014799,3.0486,3280.2,3279.7,3.04905]
[1722369015321,3.04847,3280.4,3279.8,3.04895]
[1722369015466,6.04836,3280.5,3279.7,3.04905]
[1722369015467,3.0,3280.3,3279.7,3.049]
[1722369015668,3.0,3280.3,3279.7,3.04899]
[1722369015869,3.0,3280.4,3279.2,3.04944]
[1722369016077,3.04883,3280.0,3279.4,3.04928]
[1722369016321,3.04883,3280.0,3279.4,3.04927]
[1722369016525,3.04906,3279.7,3279.0,3.04965]
[1722369016742,3.04901,3279.8,3279.1,3.04956]
[1722369016743,3.0492,3279.6,3279.1,3.04956]
[1722369017050,2.8253,3279.9,3279.2,3.04946]
[1722369017051,3.04907,3279.7,3279.2,3.04946]
[1722369017352,3.04907,3279.7,3279.1,3.04961]
[1722369017511,3.0493,3279.5,3278.8,2.73]
[1722369017716,3.04938,3279.4,3278.8,2.73]
[1722369017934,3.04938,3279.4,3278.8,5.77983]
[1722369018102,3.04957,3279.2,3278.8,2.73]
[1722369018700,3.04957,3279.2,3278.5,35.0]
[1722369018701,3.04976,3279.0,3278.5,35.0]
[1722369019015,3.0499,3278.8,3278.2,3.05037]
[1722369019213,3.04994,3278.8,3277.9,3.05068]
[1722369019441,2.576,3279.1,3277.9,3.05068]
[1722369019442,3.05029,3278.4,3277.9,3.05068]
[1722369019651,3.05028,3278.4,3277.7,6.4073]
[1722369019949,3.05028,3278.4,3277.7,7.04801]
[1722369020100,6.10063,3278.4,3277.7,3.99717]
[1722369020298,3.05045,3278.2,3277.6,0.3056]
[1722369020617,3.05045,3278.2,3277.6,3.3566]
[1722369021010,6.60005,3278.7,3277.9,3.05068]
[1722369021214,3.0,3278.7,3278.1,3.05048]
[1722369021420,3.0,3278.7,3278.3,3.0503]
[1722369021620,6.04986,3278.9,3278.2,3.05044]
[1722369021820,3.04999,3278.7,3278.0,3.355618]
[1722369022041,6.04986,3278.9,3278.1,0.3355618]
[1722369022256,2.2753,3279.3,3278.1,0.3355618]
[1722369022405,3.04953,3279.2,3278.4,3.05023]
[1722369022599,2.2753,3279.3,3278.6,3.05002]
[1722369022600,6.04962,3279.1,3278.6,3.05002]
[1722369022804,3.0,3279.1,3278.6,41.10002]
[1722369023005,3.04915,3279.6,3278.6,35.0]
[1722369023255,3.04915,3279.6,3279.0,3.04963]
[1722369023817,3.04915,3279.6,3278.8,3.0498]
[1722369024021,2.4663,3279.7,3278.6,35.0]
[1722369024246,2.4663,3279.7,3278.5,3.355183]
[1722369024247,3.04992,3278.8,3278.1,0.3355618]
[1722369024522,3.04992,3278.8,3278.0,3.05056]
[1722369024721,0.55,3278.7,3278.1,38.05054]
[1722369024927,3.05008,3278.6,3278.1,38.05054]
[1722369025308,0.55,3278.7,3278.1,38.05046]
[1722369025514,0.55,3278.7,3278.1,41.09947288]
[1722369025515,3.60001,3278.7,3278.1,41.09947288]
[1722369025850,0.55,3278.7,3278.4,3.05025]
[1722369026352,3.0,3279.1,3278.6,3.05001]
[1722369026648,3.0,3279.2,3278.6,3.05001]
[1722369026852,3.0,3279.2,3278.7,3.04993]
[1722369027045,3.0,3279.2,3278.3,2.3078]
[1722369027046,3.04971,3279.0,3278.3,6.10059]
[1722369027251,3.0,3279.2,3278.1,38.04901288]
[1722369027453,3.0,3279.2,3278.7,3.04993]
[1722369028366,3.04976,3279.0,3278.4,3.05021]
[1722369028569,3.04976,3279.0,3278.4,3.355231]
[1722369028868,6.04957,3279.2,3278.5,3.05011]
[1722369029220,3.0,3279.2,3278.7,3.04998]
[1722369029447,3.0,3279.3,3278.7,3.04991]
[1722369029653,3.55,3279.3,3278.9,3.0498]
[1722369029866,3.0,3279.2,3278.8,6.09964]
[1722369030018,0.55,3279.3,3278.8,3.04981]
[1722369030222,0.55,3279.4,3279.0,3.0497]
[1722369030573,4.73760815,3282.7,3279.0,3.0497]
[1722369030574,6.48313203,3279.8,3279.4,3.04925]
[1722369030868,6.48313203,3279.8,3279.7,6.0981]
[1722369031041,3.04804,3280.8,3280.1,3.04862]
[1722369031042,6.48313203,3280.5,3280.1,3.04862]
[1722369031237,3.04832,3280.5,3279.9,3.04879]
[1722369031621,3.04828,3280.6,3279.9,3.04879]
[1722369031622,0.05839665,3280.4,3279.9,3.04879]
[1722369031822,3.04828,3280.6,3279.9,3.04879]
[1722369032168,3.04807,3280.8,3280.0,3.04873]
[1722369032169,0.05835467,3280.5,3280.0,3.04873]
[1722369032323,3.04841,3280.4,3279.8,3.04892]
[1722369032774,0.05863217,3280.3,3279.7,3.049]
[1722369032923,3.10714217,3280.3,3279.8,3.04896]
[1722369033119,11.78661203,3280.9,3279.6,35.0]
[1722369033120,3.04817,3280.7,3280.1,3.04868]
[1722369033324,0.05835065,3280.2,3280.1,3.04868]
[1722369033544,3.04814,3280.7,3280.2,3.04857]
[1722369033823,0.60836967,3280.6,3280.2,3.04857]
[1722369034054,6.65659967,3280.6,3280.1,3.04867]
[1722369034371,3.60836967,3280.6,3280.1,3.04862]
[1722369034539,0.60836967,3280.6,3280.1,3.04862]
[1722369034734,3.65659967,3280.6,3279.9,6.09761]
[1722369034934,3.0,3280.5,3280.0,3.04876]
[1722369035154,0.55,3280.4,3280.1,3.04868]
[1722369035340,0.60839665,3280.4,3280.2,3.04858]
[1722369035592,0.60839665,3280.4,3280.0,3.04871]
[1722369036605,3.04855,3280.3,3279.6,38.04905]
[1722369036773,3.04855,3280.3,3279.7,3.04901]
[1722369036965,0.058396,3280.2,3279.6,35.0]
[1722369037216,0.058396,3280.2,3279.9,3.04886]
[1722369037411,3.59842,3280.4,3279.9,3.0488]
[1722369037568,0.05821144,3280.1,3279.9,3.0488]
[1722369037769,3.0,3280.8,3279.7,3.04901288]
[1722369038004,3.0,3280.8,3279.8,0.06097831]
[1722369038185,0.05833656,3280.7,3280.3,6.09694]
[1722369038385,0.05833656,3280.7,3280.3,3.04847]
[1722369039334,0.05833656,3280.7,3280.1,3.04861]
[1722369039632,3.10647656,3280.7,3280.1,3.04861]
[1722369039938,3.0,3280.6,3280.3,3.0485]
[1722369040111,0.05833656,3280.7,3280.3,3.0485]
[1722369040309,0.05644001,3280.5,3280.1,3.04861]
[1722369040514,3.0,3280.8,3280.1,3.04861]
[1722369040725,0.05638442,3280.4,3280.1,3.04861]
[1722369040929,9.0962,3280.8,3280.1,6.09723]
[1722369041132,0.05632883,3280.3,3280.2,3.04859]
[1722369041441,3.0,3280.6,3280.2,3.04853]
[1722369041590,0.55,3280.7,3280.2,3.04853]
[1722369041591,0.05632883,3280.3,3280.2,3.04853]
[1722369041793,0.05628574,3280.3,3280.2,3.04854]
[1722369042343,3.0,3280.7,3280.4,3.0484]
[1722369042545,3.0,3280.8,3280.4,3.04835]
[1722369042901,3.0,3280.8,3280.5,3.04824]
[1722369043100,3.0,3280.8,3279.6,5.31871]
[1722369043101,3.0,3280.8,3279.9,3.04884]
[1722369043305,3.0,3280.8,3280.0,0.06096879]
[1722369043534,3.0,3280.8,3280.3,3.04843]
[1722369043720,3.0,3280.8,3280.4,3.04835]
[1722369044047,3.0,3280.8,3280.0,0.06096843]
[1722369044201,3.0,3280.8,3280.5,3.04831]
[1722369044401,3.0,3280.8,3280.4,3.0484]
[1722369044639,3.0,3280.8,3279.9,3.04884]
[1722369044844,3.0,3280.8,3280.5,3.04831]
[1722369045557,0.05469574,3280.7,3280.5,3.04831]
[1722369045735,0.05469574,3280.7,3280.5,3.04826]
[1722369046054,0.05469574,3280.7,3280.5,3.04825]
[1722369046255,0.05469574,3280.7,3279.9,3.04882]
[1722369046550,3.04841,3280.4,3279.9,3.04882]
[1722369046903,0.05454409,3280.3,3280.1,3.04863]
[1722369047138,2.4572,3280.5,3280.2,3.04858]
[1722369047452,0.55,3280.6,3280.3,3.04849]
[1722369047659,3.59814,3280.7,3280.2,3.04857]
[1722369047803,3.0,3280.6,3280.2,3.04857]
[1722369048004,0.55,3280.5,3280.2,3.04857]
[1722369048409,0.55,3280.5,3280.1,3.04863]
[1722369048610,3.0,3280.8,3280.2,3.04853]
[1722369049038,3.0,3280.8,3280.3,3.04843]
[1722369049236,3.0,3280.8,3280.4,3.04839]
[1722369049439,6.48313203,3280.9,3280.6,3.0482]
[1722369049610,6.48313203,3280.9,3280.7,3.04811]
[1722369049810,6.48313203,3280.9,3280.5,3.04825]
[1722369050556,6.48313203,3280.9,3280.2,3.0485]
[1722369050773,6.48313203,3280.9,3280.4,3.04835]
[1722369050931,6.48313203,3280.9,3280.5,3.04829]
[1722369051375,9.53111203,3280.9,3280.3,3.04844]
[1722369051574,3.04805,3280.8,3280.3,3.04844]
[1722369051779,3.59805,3280.8,3280.3,3.04844]
[1722369053175,0.55,3280.8,3280.3,3.0485]
[1722369053387,0.55,3280.8,3280.2,3.04859]
[1722369053388,3.04814,3280.7,3280.2,3.04859]
[1722369053697,6.48313203,3280.9,3280.5,3.04824]
[1722369053833,6.48313203,3280.9,3280.6,3.0482]
[1722369054037,3.0,3281.2,3280.5,3.04824]
[1722369054250,6.59776,3281.1,3280.4,3.0484]
[1722369054452,3.0,3281.1,3279.8,3.04892]
[1722369054649,0.55,3281.0,3280.7,3.04812]
[1722369054845,3.0,3281.1,3280.7,3.04812]
[1722369055073,2.4522,3281.3,3280.9,3.04789]
[1722369055277,0.55,3281.2,3280.9,3.04789]
[1722369055480,3.55,3281.2,3280.8,3.04803]
[1722369055983,3.04782,3281.1,3280.5,3.04831]
[1722369056281,3.0,3281.0,3280.6,3.04816]
[1722369056484,3.0,3281.1,3280.5,3.04826]
[1722369056672,3.0,3281.1,3280.7,3.04812]
[1722369056841,3.55,3281.2,3280.8,3.04802]
[1722369057391,3.55,3281.2,3280.9,3.04793]
[1722369057539,3.55,3281.2,3280.7,3.04804]
[1722369057740,3.55,3281.2,3280.7,3.04807]
[1722369058081,3.55,3281.2,3280.7,38.04807]
[1722369058311,3.55,3281.2,3280.7,41.09613]
[1722369058669,3.55,3281.2,3280.7,38.04806]
[1722369059062,3.55,3281.2,3280.7,41.09613]
[1722369059367,3.55,3281.2,3280.8,3.04803]
[1722369059877,3.55,3281.2,3280.7,38.04812]
[1722369060080,3.04776,3281.1,3280.7,35.0]
[1722369060276,3.05478964,3281.0,3280.7,35.0]
[1722369060579,3.04808,3280.8,3280.3,3.04844]
[1722369060779,0.55,3280.9,3279.8,3.04888]
[1722369060780,3.04799,3280.9,3279.8,3.04888]
[1722369061091,3.05478964,3281.0,3280.4,3.04834]
[1722369061092,0.60482949,3280.8,3280.4,3.04834]
[1722369061281,0.60482949,3280.8,3280.2,6.09705]
[1722369061479,6.70097949,3280.8,3279.9,35.304888]
[1722369061694,0.60482949,3280.8,3279.9,35.304888]
[1722369061928,0.60482949,3280.8,3280.0,3.04901288]
[1722369062096,0.60482949,3280.8,3280.5,3.04831]
[1722369062269,0.60482949,3280.8,3280.4,3.0484]
[1722369062666,0.60482949,3280.8,3280.4,3.04836]
[1722369062868,0.60482949,3280.8,3280.5,3.0483]
[1722369063119,0.05482949,3280.8,3280.5,3.0483]
[1722369063633,9.48313203,3281.0,3280.7,3.04812]
[1722369063982,9.48313203,3281.0,3280.5,3.04822]
[1722369064160,12.53099203,3281.0,3280.5,3.04822]
[1722369064360,12.53099203,3281.0,3280.1,3.04862]
[1722369064361,9.48313203,3281.0,3280.1,3.04862]
[1722369064567,2.4153,3280.6,3280.1,3.04862]
[1722369064814,5.46353,3280.6,3280.0,3.04877]
[1722369065023,0.55,3280.5,3279.6,38.04912]
[1722369065218,0.55,3280.5,3279.6,3.04908]
[1722369065219,3.04857,3280.3,3279.6,3.04908]
[1722369065368,3.04859,3280.2,3279.7,3.04905]
[1722369065567,3.04859,3280.2,3279.6,38.04914]
[1722369065780,3.04882,3280.0,3279.2,3.04946]
[1722369065984,3.04888,3279.9,3279.3,3.04937]
[1722369066480,3.04902,3279.8,3279.2,38.04952]
[1722369067235,3.04902,3279.8,3279.2,3.04952]
[1722369067436,2.2596,3279.9,3279.3,3.04939]
[1722369067602,5.2596,3279.9,3279.5,3.0492]
[1722369067806,3.0,3280.1,3279.1,35.0]
[1722369067987,3.0,3280.1,3279.8,3.0489]
[1722369068185,3.0,3280.1,3279.6,3.04911]
[1722369068387,3.0,3280.1,3279.4,3.04924]
[1722369068596,3.0,3280.1,3279.6,3.04914]
[1722369069213,3.0,3280.1,3279.7,3.04904]
[1722369069603,3.0,3280.1,3279.4,3.04928]
[1722369069806,3.0,3280.1,3279.6,6.09818]
[1722369070133,6.04877,3280.1,3279.4,6.09854]
[1722369070329,3.0,3280.1,3279.5,3.04922]
[1722369070538,0.55,3280.0,3279.5,3.04922]
[1722369070688,0.55,3280.0,3279.2,3.04946]
[1722369070888,0.55,3280.0,3279.4,3.04933]
[1722369070889,2.9307,3280.0,3279.4,3.04933]
[1722369071122,2.9307,3280.0,3279.0,3.659631]
[1722369071304,3.0,3280.1,3279.7,3.049]
[1722369071732,6.48313203,3280.2,3279.9,3.0488]
[1722369072029,3.0,3280.6,3280.2,3.04852]
[1722369072741,3.0,3280.6,3280.2,6.09705]
[1722369072889,6.48313203,3280.7,3280.4,3.04835]
[1722369073090,6.48313203,3280.7,3280.3,3.04849]
[1722369073330,6.48313203,3280.7,3280.3,3.04844]
[1722369073570,6.48313203,3280.7,3280.4,3.04833]
[1722369073774,6.48313203,3280.7,3280.5,3.04825]
[1722369074572,6.48313203,3280.7,3280.3,3.04841]
[1722369075275,0.05470937,3280.6,3280.3,3.04841]
[1722369075476,0.05470937,3280.6,3280.4,3.0484]
[1722369076757,0.05470937,3280.6,3280.2,3.04856]
[1722369076758,0.05470937,3280.6,3280.3,3.04842]
[1722369078483,6.04803,3280.8,3280.3,3.04842]
[1722369078980,0.05480792,3280.7,3280.3,3.04841]
[1722369079870,3.04803,3280.8,3280.3,3.04841]
[1722369080078,3.04832,3280.5,3279.9,3.04881]
[1722369080231,3.0,3280.4,3279.7,3.04899]
[1722369080435,3.04854,3280.3,3279.7,3.04898]
[1722369080652,0.55,3280.2,3279.6,3.04911]
[1722369080874,0.55,3280.2,3279.5,3.04923]
[1722369080875,3.04878,3280.0,3279.5,3.04923]
[1722369081167,2.8022,3280.2,3279.3,3.04938]
[1722369081365,2.8022,3280.2,3279.5,3.04921]
[1722369081565,3.04874,3280.1,3279.5,3.04921]
[1722369081783,3.59879,3280.0,3279.4,3.04926]
[1722369081990,3.04879,3280.0,3279.5,3.04923]
[1722369082186,3.04901,3279.8,3279.1,3.04953]
[1722369082557,3.04901,3279.8,3279.2,3.04944]
[1722369082764,3.0489,3279.9,3279.1,3.04953]
[1722369083073,3.04883,3280.0,3279.3,3.04936]
[1722369083403,0.55,3279.9,3279.6,3.04913]
[1722369083603,5.85084,3280.2,3279.6,3.04913]
[1722369083757,5.85084,3280.2,3279.4,3.04929]
[1722369083758,5.85084,3280.2,3279.4,6.09854]
[1722369083958,3.04875,3280.1,3279.4,6.09851]
[1722369084304,2.2522,3280.2,3279.6,3.04908]
[1722369084598,5.2522,3280.2,3279.4,3.04928]
[1722369084757,5.2522,3280.2,3279.6,6.09816]
[1722369085161,5.2522,3280.2,3279.2,3.04946]
[1722369085360,0.55,3280.1,3279.4,3.04932]
[1722369085596,0.55,3280.1,3279.2,3.04944]
[1722369085799,6.09765,3280.0,3279.4,3.04928]
[1722369086008,3.04901,3279.8,3279.2,3.04947]
[1722369087025,0.55,3279.9,3279.0,35.0]
[1722369087177,8.30084,3280.2,3279.4,3.04928]
[1722369087178,0.55,3280.0,3279.4,3.04928]
[1722369087377,0.55,3280.1,3279.6,3.04909]
[1722369087707,3.04884,3280.0,3279.4,3.04928]
[1722369087866,0.55,3279.9,3279.4,3.04928]
[1722369088068,3.04898,3279.8,3279.2,3.04946]
[1722369088364,0.55,3279.9,3279.4,3.04933]
[1722369089408,0.55,3279.9,3279.4,6.0986]
[1722369089701,3.04897,3279.8,3279.2,3.04946]
[1722369089909,0.55,3279.9,3279.4,3.04932]
[1722369090206,0.05408804,3279.8,3279.4,3.04932]
[1722369090406,0.05408804,3279.8,3279.2,3.04946]
[1722369090564,3.10309804,3279.8,3279.2,3.04946]
[1722369090762,3.10309804,3279.8,3279.2,6.09893]
[1722369091007,3.10309804,3279.8,3279.2,3.04946]
[1722369091209,0.05408804,3279.8,3279.0,38.04965]
[1722369091412,3.04926,3279.5,3278.9,3.04977]
[1722369091618,3.04926,3279.5,3278.5,3.05013]
[1722369091619,3.04948,3279.3,3278.5,3.05013]
[1722369091766,3.04948,3279.3,3278.5,3.05011]
[1722369091767,3.04962,3279.1,3278.5,3.05011]
[1722369091973,3.04962,3279.1,3278.4,2.73]
[1722369092217,3.04996,3278.8,3278.1,6.10094]
[1722369092563,3.04996,3278.8,3277.6,5.31348]
[1722369092564,3.05022,3278.5,3277.7,3.05084]
[1722369093150,3.10381297,3278.4,3277.2,43.04386]
[1722369093349,3.05059,3278.1,3277.4,3.05112]
[1722369093562,6.10121,3278.1,3277.4,3.05112]
[1722369093724,3.0504,3278.3,3277.6,3.051]
[1722369093928,0.60330868,3278.2,3277.6,3.051]
[1722369094804,3.05054,3278.1,3277.4,3.05113]
[1722369095007,3.05054,3278.1,3277.5,3.05108]
[1722369095267,0.05319736,3278.0,3277.7,3.05091]
[1722369095608,3.0,3278.6,3278.1,3.05048]
[1722369095839,5.2912,3278.7,3278.1,3.05048]
[1722369096042,0.55,3278.6,3278.1,3.05048]
[1722369096239,3.0,3278.6,3278.3,3.05035]
[1722369096472,3.0,3278.6,3277.8,3.05081]
[1722369096610,6.48313203,3278.8,3278.4,3.05023]
[1722369096820,3.0,3278.7,3278.4,3.05023]
[1722369097012,2.2504,3279.1,3278.6,3.05005]
[1722369097221,6.48313203,3279.2,3278.7,3.04996]
[1722369097650,6.48313203,3279.2,3278.6,35.0]
[1722369097852,6.48313203,3279.2,3278.6,41.10007]
[1722369098188,6.48313203,3279.2,3278.8,3.04981]
[1722369098472,6.48313203,3279.2,3278.9,3.04972]
[1722369098626,6.48313203,3279.2,3279.1,3.04961]
[1722369098823,2.2504,3279.6,3279.1,3.04961]
[1722369099279,6.48313203,3279.8,3279.3,3.04938]
[1722369099433,6.48313203,3279.8,3278.8,0.304981]
[1722369099434,3.04912,3279.7,3279.1,3.04956]
[1722369100674,3.55,3279.6,3278.9,3.04972]
[1722369100845,3.55,3279.6,3279.0,3.0497]
[1722369101175,0.55,3279.6,3279.0,3.0497]
[1722369101372,3.0,3279.7,3279.3,3.04937]
[1722369101530,3.0,3279.7,3278.7,3.04995]
[1722369101531,6.48313203,3279.8,3279.4,3.04933]
[1722369101736,6.48313203,3279.8,3279.4,3.04926]
[1722369102369,6.48313203,3279.8,3279.2,3.04945]
[1722369102894,6.48313203,3279.8,3279.3,3.04937]
[1722369103418,9.53209203,3279.8,3279.3,3.04937]
[1722369104532,6.48313203,3279.8,3279.3,3.04937]
[1722369104732,3.04889,3279.9,3279.3,3.04936]
[1722369105073,3.0,3279.8,3279.1,3.04953]
[1722369105243,3.05389708,3279.8,3279.3,3.04938]
[1722369105940,0.05389708,3279.8,3279.3,3.04938]
[1722369106145,3.59911,3279.7,3279.1,3.04953]
[1722369106342,0.05378586,3279.6,3279.2,3.04946]
[1722369106573,0.05378586,3279.6,3279.1,3.04953]
[1722369106789,0.05378586,3279.6,3279.3,3.04942]
[1722369107130,3.04884,3280.0,3279.3,3.04942]
[1722369107440,3.60395269,3279.9,3279.4,3.04926]
[1722369107667,0.60395269,3279.9,3279.5,3.04919]
[1722369107849,0.60395269,3279.9,3279.6,3.04914]
[1722369108256,0.60395269,3279.9,3279.4,3.04926]
[1722369108445,0.60395269,3279.9,3279.5,3.04917]
[1722369108948,0.05395269,3279.9,3279.5,3.04917]
[1722369109157,6.04869,3280.1,3279.5,3.04916]
[1722369109480,6.04869,3280.1,3279.6,3.0491]
[1722369109481,0.05389708,3279.8,3279.6,3.0491]
[1722369109638,0.55,3280.0,3279.6,3.0491]
[1722369109984,6.48313203,3280.2,3279.9,3.04881]
[1722369110142,0.05379186,3279.9,3279.7,3.04899]
[1722369110333,6.48313203,3280.2,3279.7,3.04899]
[1722369110548,0.05366474,3280.1,3279.7,3.04899]
[1722369110875,3.04869,3280.1,3279.5,3.04917]
[1722369111127,0.05362643,3280.0,3279.5,3.04917]
[1722369111479,0.05362643,3280.0,3279.6,3.04914]
[1722369111922,3.10245643,3280.0,3279.5,35.0]
[1722369112076,3.10274949,3279.9,3279.2,3.04944]
[1722369112292,3.10274949,3279.9,3278.6,2.423]
[1722369112293,3.0492,3279.6,3278.6,2.423]
[1722369112529,0.05320972,3279.5,3279.0,3.04963]
[1722369112730,2.483,3279.7,3278.8,3.04984]
[1722369112899,3.60326534,3279.6,3278.5,2.73]
[1722369113101,3.0496,3279.2,3278.6,3.05]
[1722369113414,0.05312541,3279.1,3278.8,3.04989]
[1722369113817,3.04943,3279.3,3278.7,3.04993]
[1722369114020,0.05300725,3279.0,3278.6,3.04999]
[1722369114204,0.55,3279.2,3278.7,3.04996]
[1722369114404,0.05295162,3278.9,3278.5,2.73]
[1722369114604,3.59958,3279.2,3278.6,3.05005]
[1722369114803,3.59958,3279.2,3278.6,6.10005]
[1722369115020,3.10268289,3279.1,3278.6,3.05]
[1722369115422,0.05306289,3279.1,3278.6,3.05]
[1722369116897,0.05306289,3279.1,3278.7,3.0499]
[1722369117096,0.05306289,3279.1,3278.8,3.04986]
[1722369118043,0.05306289,3279.1,3278.9,3.04973]
[1722369118209,0.05306289,3279.1,3279.0,3.04971]
[1722369118409,0.05306289,3279.1,3279.0,6.09942]
[1722369118608,2.483,3279.7,3279.1,3.04959]
[1722369118812,5.53211,3279.7,3279.1,3.04959]
[1722369119013,0.05101091,3279.6,3279.1,3.04959]
[1722369119209,0.05101091,3279.6,3279.2,3.04947]
[1722369119435,0.05101091,3279.6,3279.3,3.04938]
[1722369119823,3.04912,3279.7,3279.0,3.04962]
[1722369120142,9.69942972,3279.6,3279.0,3.04962]
[1722369120345,3.04939,3279.4,3278.6,3.05002]
[1722369120497,0.60118683,3279.3,3278.1,35.0]
[1722369120699,0.05118683,3279.3,3278.8,3.04983]
[1722369120895,3.10061683,3279.3,3278.8,3.04982]
[1722369121337,0.05118683,3279.3,3278.6,3.05002]
[1722369121643,3.10066683,3279.3,3278.7,3.04993]
[1722369121845,0.05118683,3279.3,3278.8,3.04988]
[1722369122412,3.10061683,3279.3,3278.8,3.04988]
[1722369122627,0.05118683,3279.3,3278.8,3.04988]
[1722369122952,3.10066683,3279.3,3278.7,3.04997]
[1722369123245,3.0498,3278.9,3278.4,3.05021]
[1722369123541,0.05079801,3278.8,3278.6,3.04999]
[1722369123744,3.04961,3279.1,3278.6,3.04999]
[1722369124045,0.60082637,3279.0,3278.5,3.05017]
[1722369124417,0.60082637,3279.0,3278.4,3.05026]
[1722369124619,0.60082637,3279.0,3278.5,3.05014]
[1722369125141,0.05082637,3279.0,3278.6,3.04999]
[1722369125343,3.0,3279.2,3278.7,3.04993]
[1722369125544,0.05083219,3279.1,3279.0,3.0497]
[1722369125747,0.05083219,3279.1,3279.0,3.04971]
[1722369126064,11.86223203,3279.9,3279.0,0.304971]
[1722369126227,6.48313203,3279.9,3279.6,3.04908]
[1722369126557,0.04720019,3279.8,3279.6,3.04908]
[1722369126713,3.04869,3280.1,3279.6,3.04908]
[1722369126915,3.04869,3280.1,3278.6,3.05004]
[1722369126916,0.04742456,3280.0,3279.8,3.04895]
[1722369127125,18.96313203,3280.4,3279.9,6.09774]
[1722369127463,0.04750607,3280.3,3279.9,3.04887]
[1722369127663,0.04750607,3280.3,3280.0,3.04872]
[1722369127964,0.04750607,3280.3,3279.4,38.0493]
[1722369127965,0.04750607,3280.3,3280.2,3.04859]
[1722369128132,0.04750607,3280.3,3279.4,35.0]
[1722369128343,0.04750607,3280.3,3279.8,3.04891]
[1722369128647,0.04750607,3280.3,3280.0,3.04874]
[1722369128828,0.04750607,3280.3,3280.2,3.04859]
[1722369129031,9.53121203,3280.8,3280.2,3.04859]
[1722369129352,6.09619,3280.8,3280.2,3.04859]
[1722369129526,0.04295989,3280.7,3280.3,3.04849]
[1722369129914,3.0,3280.7,3280.0,3.04873]
[1722369130112,0.04295958,3280.6,3280.2,3.04853]
[1722369130618,3.04803,3280.8,3280.2,3.04853]
[1722369130817,0.042904,3280.5,3280.2,3.04853]
[1722369131113,0.04284841,3280.4,3279.8,6.09783]
[1722369131345,0.04284841,3280.4,3279.4,38.04933]
[1722369131346,3.04841,3280.4,3279.7,3.04902]
[1722369131551,3.09136282,3280.3,3279.7,3.04898]
[1722369131750,3.0487,3280.1,3279.5,3.04919]
[1722369131967,0.04292996,3280.0,3279.5,3.04917]
[1722369132110,0.04292996,3280.0,3279.1,35.3056]
[1722369132455,0.04292996,3280.0,3279.7,3.04904]
[1722369132625,0.04292996,3280.0,3279.6,3.04913]
[1722369132833,0.55,3280.1,3279.6,3.04913]
[1722369133029,0.04287436,3279.9,3279.6,3.04908]
[1722369133233,0.04292996,3280.0,3279.7,3.04905]
[1722369133410,0.0426806,3279.8,3279.7,3.04905]
[1722369133638,6.5985,3280.3,3279.6,3.04908]
[1722369133839,0.0426806,3279.8,3279.7,3.04905]
[1722369134086,6.5985,3280.3,3279.6,3.04908]
[1722369134290,0.0426806,3279.8,3279.7,3.04905]
[1722369134449,3.04861,3280.2,3279.7,3.04905]
[1722369134648,0.55,3280.1,3279.4,3.04928]
[1722369134881,0.59298555,3280.1,3279.4,0.304928]
[1722369135083,0.04298555,3280.1,3280.0,3.04878]
[1722369135265,0.04298555,3280.1,3280.0,6.09756]
[1722369135475,6.48313203,3280.4,3280.0,3.04878]
[1722369135680,0.04279214,3280.1,3280.0,3.04878]
[1722369135853,6.48313203,3280.4,3280.1,3.04866]
[1722369136050,6.48313203,3280.4,3280.0,3.04876]
[1722369136663,6.48313203,3280.4,3280.0,6.09748]
[1722369136978,6.48313203,3280.4,3280.0,3.04876]
[1722369137362,3.04814,3280.7,3280.2,3.04858]
[1722369137591,3.55,3280.6,3280.2,3.04858]
[1722369137969,3.0,3280.6,3280.4,3.04839]
[1722369138167,6.48313203,3280.8,3280.4,6.09673]
[1722369138350,6.48313203,3280.8,3280.4,6.09667]
[1722369138699,6.48313203,3280.8,3280.5,3.04831]
[1722369139759,6.48313203,3280.8,3280.4,3.04833]
[1722369140701,6.48313203,3280.8,3280.6,3.04817]
[1722369141004,6.48313203,3280.8,3280.6,3.04815]
[1722369141208,2.3791,3281.0,3280.6,3.04815]
[1722369141403,5.3791,3281.0,3280.7,3.04812]
[1722369141710,5.3791,3281.0,3280.6,3.04815]
[1722369142015,2.3791,3281.0,3280.5,3.04829]
[1722369142569,2.3791,3281.0,3280.6,3.04817]
[1722369142763,2.3791,3281.0,3280.5,3.04831]
[1722369142968,5.3791,3281.0,3280.5,3.04831]
[1722369143901,3.04815,3280.7,3280.2,3.04859]
[1722369144100,3.04815,3280.7,3279.5,3.04916]
[1722369144422,0.55,3280.6,3280.2,3.04858]
[1722369145215,0.55,3280.6,3280.0,3.04871]
[1722369145216,3.59823,3280.6,3280.0,3.04871]
[1722369145384,3.59823,3280.6,3280.1,3.04868]
[1722369145719,0.55,3280.6,3279.8,3.04891]
[1722369145916,2.575,3280.8,3279.8,3.04891]
[1722369145917,3.0485,3280.4,3279.8,3.04891]
[1722369146504,3.0485,3280.4,3279.8,3.0489]
[1722369146726,3.04892,3279.9,3279.1,35.0]